lending/lending_fUSD_20240509
["ID","MTS","AMOUNT","RATE_DAILY","PERIOD"]
[326701143,1715263791894,1158.9905417,9.145e-05,2]
[326701144,1715263791917,2000.0,9.145e-05,2]
[326701145,1715263791941,2000.0,9.145e-05,2]
[326701146,1715263791992,-1898.69382015,9.145e-05,2]
[326701147,1715263813002,101.30617985,8.858e-05,2]
[326701148,1715263813023,65.11382015,8.858e-05,2]
[326701160,1715263832771,288.93006035,9.146e-05,2]
[326701167,1715263833022,-353.47386846,9.75e-05,2]
[326701169,1715263833033,-176.43775847,0.00010781,2]
[326701171,1715263833047,-1297.84544164,0.00011078,2]
[326701173,1715263833060,-250.0,0.00011085,2]
[326701175,1715263833071,-500.0,0.00011333,2]
[326701177,1715263833083,-180.87,0.00011334,2]
[326701179,1715263833094,-2777.64511527,0.00011335,2]
[326701181,1715263833105,-700.0,0.00011335,2]
[326701183,1715263833121,-917.25854404,0.00011335,2]
[326701186,1715263833140,-448.74875887,0.00011335,2]
[326701188,1715263833153,-3571.84322377,0.00011335,2]
[326701190,1715263833167,-331.17817242,0.00011335,2]
[326701192,1715263833182,-255.97559429,0.00011335,2]
[326701195,1715263833193,-32157.3325496,0.00011335,2]
[326701197,1715263833206,-250.0,0.00011342,2]
[326701199,1715263833216,-256.74256768,0.00011349,2]
[326701201,1715263833226,-538.95357639,0.00011349,2]
[326701203,1715263833235,-515.6795376,0.0001135,2]
[326701205,1715263833244,-4813.5295762,0.0001135,2]
[326701207,1715263833255,-23900.0,0.00011351,2]
[326701209,1715263833270,-1500.0,0.0001137,2]
[326701211,1715263833280,-325.19,0.00011378,2]
[326701213,1715263833289,-10000.0,0.00011389,2]
[326701215,1715263833299,-1052.86,0.00011401,2]
[326701217,1715263833308,-495.97,0.00011425,2]
[326701219,1715263833317,-155.65,0.00011466,2]
[326701221,1715263833326,-155.65,0.00011503,2]
[326701223,1715263833336,-155.65,0.0001154,2]
[326701225,1715263833345,-155.65,0.00011578,2]
[326701227,1715263833355,-155.65,0.00011615,2]
[326701228,1715263833364,-155.65,0.00011652,2]
[326701229,1715263833373,-155.65,0.0001169,2]
[326701230,1715263833383,-155.65,0.00011727,2]
[326701231,1715263833392,-155.65,0.00011764,2]
[326701232,1715263833401,-155.65,0.00011802,2]
[326701233,1715263833410,-155.65,0.00011839,2]
[326701234,1715263833420,-155.65,0.00011876,2]
[326701235,1715263833429,-155.65,0.00011914,2]
[326701236,1715263833438,-155.65,0.00011951,2]
[326701237,1715263833447,-155.65,0.00011988,2]
[326701238,1715263833457,-155.89396625,0.00012006,2]
[326701239,1715263833467,-155.65,0.00012026,2]
[326701240,1715263833479,-14976.79,0.00012055,2]
[326701241,1715263833489,-155.65,0.00012063,2]
[326701242,1715263833499,-1000.0,0.0001211,2]
[326701243,1715263833509,-174.11,0.0001211,2]
[326701244,1715263833519,-260.69,0.0001211,2]
[326701245,1715263833528,-164.47,0.00012148,2]
[326701246,1715263833537,-499.99,0.00012148,2]
[326701247,1715263833547,-180.49,0.00012168,2]
[326701248,1715263833557,-200.0,0.00012168,2]
[326701249,1715263833566,-19666.08,0.00012168,2]
[326701250,1715263833576,-21867.111,0.00012206,2]
[326701251,1715263833585,-180.49,0.00012229,2]
[326701252,1715263833594,-170.24,0.00012268,2]
[326701253,1715263833604,-1266.72867064,0.00012349,2]
[326701254,1715263833613,-325.19,0.000128,2]
[326701255,1715263833623,-3500.3496962,0.00012807,2]
[326701256,1715263833633,-168.5402642,0.00012868,2]
[326701257,1715263833642,-8298.95,0.00012893,2]
[326701258,1715263833652,-1205.98,0.00012893,2]
[326701259,1715263833662,-5563.7,0.00012893,2]
[326701260,1715263833672,-9222.16543257,0.00012893,2]
[326701261,1715263838285,-305.50719265,0.00012893,2]
[326701287,1715263840103,-520.26037813,0.00012893,2]
[326701293,1715263840115,-19952.05699665,0.00012893,2]
[326701295,1715263840126,-4297.6801,0.000129,2]
[326701297,1715263840139,-4877.093,0.000129,2]
[326701299,1715263840150,-2206.39389149,0.000129,2]
[326701301,1715263840163,-413.5232386,0.000129,2]
[326701303,1715263840174,-1000.0,0.000129,2]
[326701305,1715263840183,-1283.90177797,0.000129,2]
[326701307,1715263840193,-1000.0,0.00012937,2]
[326701309,1715263840204,-157.75242174,0.00012998,2]
[326701311,1715263840213,-788.91065568,0.00012998,2]
[326701313,1715263840222,-885.67510047,0.00012998,2]
[326701315,1715263840232,-288.90150966,0.00012998,2]
[326701317,1715263840242,-389.16633426,0.00012998,2]
[326701319,1715263840252,-241.31138284,0.00012998,2]
[326701321,1715263840261,-156.25836839,0.00012998,2]
[326701323,1715263840270,-303.95983633,0.00012998,2]
[326701324,1715263840279,-177.08401672,0.00012998,2]
[326701326,1715263840289,-413.06779798,0.00012998,2]
[326701328,1715263840298,-2218.37398119,0.00012998,2]
[326701330,1715263840307,-194.65788438,0.00012998,2]
[326701332,1715263840317,-155.22619343,0.00012998,2]
[326701334,1715263840326,-176.88527498,0.00012999,2]
[326701336,1715263840335,-1244.2252,0.00012999,2]
[326701338,1715263840344,-733.63577856,0.00012999,2]
[326701340,1715263840354,-1848.24109665,0.00012999,2]
[326701342,1715263840364,-155.0,0.00012999,2]
[326701344,1715263840374,-155.58925127,0.00012999,2]
[326701346,1715263840383,-414.76567386,0.00012999,2]
[326701347,1715263840393,-248.20648859,0.00012999,2]
[326701348,1715263840402,-178.79771115,0.00012999,2]
[326701349,1715263840411,-2928.0396905,0.00012999,2]
[326701350,1715263840424,-1103354.55214966,0.00013,2]
[326701351,1715263840993,-1844.38,0.00013,2]
[326701353,1715263841916,-2433.90840367,0.00013,2]
[326701354,1715263842010,-1053.98522685,0.00013,2]
[326701355,1715263842022,-500.00773998,0.00013,2]
[326701356,1715263842034,-463.80869936,0.00013,2]
[326701357,1715263842054,-1482.75315381,0.00013,2]
[326701358,1715263842066,-983.34596549,0.00013,2]
[326701359,1715263842082,-5128.81878843,0.00013,2]
[326701360,1715263842153,-5249.31703935,0.00013,2]
[326701361,1715263842167,-353.34742176,0.00013,2]
[326701362,1715263842182,-341.328,0.00013,2]
[326701363,1715263842194,-29703.5133825,0.00013,2]
[326701364,1715263842205,-400.38485774,0.00013,2]
[326701365,1715263842215,-511.31070692,0.00013,2]
[326701366,1715263842230,-405.63171551,0.00013,2]
[326701367,1715263842241,-165.0,0.00013,2]
[326701368,1715263842257,-3287.26327479,0.00013,2]
[326701369,1715263842267,-3000.0,0.00013,2]
[326701370,1715263842276,-180.87,0.00013223,2]
[326701371,1715263842287,-881.92,0.00013425,2]
[326701372,1715263842299,-1000.0,0.00013624,2]
[326701373,1715263842310,-1000.0,0.00013699,2]
[326701374,1715263842321,-1000.0,0.00013699,2]
[326701375,1715263842332,-1000.0,0.00013699,2]
[326701376,1715263842343,-1000.0,0.00013699,2]
[326701377,1715263842352,-1000.0,0.00013699,2]
[326701378,1715263842366,-1000.0,0.00013699,2]
[326701379,1715263842379,-1000.0,0.00013699,2]
[326701380,1715263842396,-1000.0,0.00013699,2]
[326701381,1715263842405,-1000.0,0.00013699,2]
[326701382,1715263842420,-1000.0,0.00013699,2]
[326701383,1715263842430,-1000.0,0.00013699,2]
[326701384,1715263842440,-1000.0,0.00013699,2]
[326701385,1715263842449,-1000.0,0.00013699,2]
[326701386,1715263842462,-1000.0,0.00013699,2]
[326701387,1715263842472,-1000.0,0.00013699,2]
[326701388,1715263842483,-1000.0,0.00013699,2]
[326701389,1715263842494,-1000.0,0.00013699,2]
[326701390,1715263842505,-1000.0,0.00013699,2]
[326701391,1715263842515,-1006.0,0.00013699,2]
[326701392,1715263842524,-200.0,0.00013699,2]
[326701393,1715263842534,-500.0,0.00013699,2]
[326701394,1715263842545,-1982.36,0.00013699,2]
[326701395,1715263842554,-1000.0,0.00014,2]
[326701396,1715263842564,-1000.0,0.00014,2]
[326701397,1715263842574,-174.11,0.00014129,2]
[326701398,1715263842587,-1052.86,0.00014141,2]
[326701399,1715263842596,-157.13,0.00014142,2]
[326701400,1715263842605,-157.13,0.00014212,2]
[326701401,1715263842615,-325.19,0.00014223,2]
[326701402,1715263842624,-618.36792039,0.00015,2]
[326701403,1715263842633,-180.87,0.00015113,2]
[326701404,1715263842643,-1000.0,0.00015138,2]
[326701405,1715263842653,-2206.39389146,0.00015232,2]
[326701406,1715263842663,-1283.90177793,0.00015329,2]
[326701407,1715263842673,-155.27309265,0.000155,2]
[326701408,1715263842682,-325.19,0.00015645,2]
[326701409,1715263842692,-1000.0,0.00016,2]
[326701410,1715263842701,-174.11,0.00016147,2]
[326701411,1715263842711,-2197.19,0.00016438,2]
[326701412,1715263842720,-1000.0,0.00016652,2]
[326701413,1715263842729,-1052.86,0.00016881,2]
[326701414,1715263842738,-413.5232386,0.00016899,2]
[326701415,1715263842747,-180.87,0.00017002,2]
[326701416,1715263842757,-325.19,0.00017067,2]
[326701417,1715263842766,-158.03,0.00017171,2]
[326701418,1715263842775,-158.03,0.00017175,2]
[326701419,1715263842784,-158.03,0.0001718,2]
[326701420,1715263842794,-158.03,0.00017184,2]
[326701421,1715263842803,-158.03,0.00017189,2]
[326701422,1715263842813,-158.03,0.00017193,2]
[326701423,1715263842822,-158.03,0.00017198,2]
[326701424,1715263842831,-158.03,0.00017202,2]
[326701425,1715263842840,-158.03,0.00017207,2]
[326701426,1715263842849,-158.03,0.00017211,2]
[326701427,1715263842859,-158.03,0.00017216,2]
[326701428,1715263842868,-158.03,0.0001722,2]
[326701429,1715263842877,-158.03,0.00017225,2]
[326701430,1715263842886,-158.03,0.00017229,2]
[326701431,1715263842895,-158.03,0.00017234,2]
[326701432,1715263842904,-1000.0,0.00017234,2]
[326701433,1715263842915,-1000.0,0.00017234,2]
[326701434,1715263842924,-1000.0,0.00017234,2]
[326701435,1715263842933,-1000.0,0.00017234,2]
[326701436,1715263842942,-1000.0,0.00017234,2]
[326701437,1715263842952,-1000.0,0.00017234,2]
[326701438,1715263842961,-1000.0,0.00017234,2]
[326701439,1715263842970,-1000.0,0.00017234,2]
[326701440,1715263842980,-1000.0,0.00017234,2]
[326701441,1715263842990,-1000.0,0.00017234,2]
[326701442,1715263842999,-1000.0,0.00017234,2]
[326701443,1715263843008,-1000.0,0.00017234,2]
[326701444,1715263843018,-1000.0,0.00017234,2]
[326701445,1715263843027,-1000.0,0.00017234,2]
[326701446,1715263843036,-1000.0,0.00017234,2]
[326701447,1715263843050,-1000.0,0.00017234,2]
[326701448,1715263843059,-1000.0,0.00017234,2]
[326701449,1715263843069,-1000.0,0.00017234,2]
[326701450,1715263843078,-1000.0,0.00017234,2]
[326701451,1715263843087,-1000.0,0.00017234,2]
[326701452,1715263843098,-1000.0,0.00017234,2]
[326701453,1715263843107,-1000.0,0.00017234,2]
[326701454,1715263843117,-1000.0,0.00017234,2]
[326701455,1715263843126,-1000.0,0.00017234,2]
[326701456,1715263843136,-1000.0,0.00017234,2]
[326701457,1715263843146,-1000.0,0.00017234,2]
[326701458,1715263843155,-1000.0,0.00017234,2]
[326701459,1715263843165,-1000.0,0.00017234,2]
[326701460,1715263843177,-1000.0,0.00017234,2]
[326701461,1715263843187,-1000.0,0.00017234,2]
[326701462,1715263843197,-1000.0,0.00017234,2]
[326701463,1715263843206,-1000.0,0.00017234,2]
[326701464,1715263843215,-1000.0,0.00017234,2]
[326701465,1715263843225,-1000.0,0.00017234,2]
[326701466,1715263843234,-1000.0,0.00017234,2]
[326701467,1715263843244,-1000.0,0.00017234,2]
[326701468,1715263843253,-1000.0,0.00017234,2]
[326701469,1715263843263,-1000.0,0.00017234,2]
[326701470,1715263843272,-1000.0,0.00017234,2]
[326701471,1715263843281,-1000.0,0.00017234,2]
[326701472,1715263843291,-1000.0,0.00017234,2]
[326701473,1715263843301,-1000.0,0.00017234,2]
[326701474,1715263843310,-1000.0,0.00017234,2]
[326701475,1715263843319,-1000.0,0.00017234,2]
[326701476,1715263843329,-1000.0,0.00017234,2]
[326701477,1715263843338,-1000.0,0.00017234,2]
[326701478,1715263843347,-1000.0,0.00017234,2]
[326701479,1715263843356,-1000.0,0.00017234,2]
[326701480,1715263843366,-1000.0,0.00017234,2]
[326701481,1715263843380,-1000.0,0.00017234,2]
[326701482,1715263843390,-1000.0,0.00017234,2]
[326701483,1715263843400,-1000.0,0.00017234,2]
[326701484,1715263843410,-1000.0,0.00017234,2]
[326701485,1715263843421,-1000.0,0.00017234,2]
[326701486,1715263843431,-1000.0,0.00017234,2]
[326701487,1715263843440,-1000.0,0.00017234,2]
[326701490,1715263843450,-1000.0,0.00017234,2]
[326701493,1715263843462,-1000.0,0.00017234,2]
[326701495,1715263843475,-1000.0,0.00017234,2]
[326701498,1715263843486,-744.0,0.00017234,2]
[326701501,1715263843500,-158.03,0.00017238,2]
[326701506,1715263843510,-158.03,0.00017243,2]
[326701509,1715263843520,-158.03,0.00017247,2]
[326701512,1715263843529,-158.03,0.00017252,2]
[326701513,1715263843539,-158.03,0.00017256,2]
[326701514,1715263843550,-2765.0,0.000173,2]
[326701515,1715263843561,-2206.39389146,0.00017565,2]
[326701516,1715263843570,-1283.90177793,0.00017757,2]
[326701517,1715263843579,-400.232649,0.0001788,2]
[326701518,1715263843589,-400.23264891,0.0001788,2]
[326701519,1715263843599,-400.23264891,0.0001788,2]
[326701520,1715263843609,-283.4713929,0.0001788,2]
[326701521,1715263843618,-283.47139289,0.0001788,2]
[326701522,1715263843627,-283.47139289,0.0001788,2]
[326701523,1715263843637,-619.0,0.00018,2]
[326701524,1715263843646,-1050.0,0.00018,3]
[326701525,1715263843656,-3000.0,0.00018,2]
[326701526,1715263843666,-174.11,0.00018166,2]
[326701527,1715263843676,-1000.0,0.00018166,2]
[326701528,1715263843685,-163.014,0.00018211,2]
[326701529,1715263843695,-5746.0,0.00018211,2]
[326701530,1715263843704,-34322.553,0.00018211,2]
[326701531,1715263843714,-400.23264891,0.000185,2]
[326701532,1715263843723,-283.47139289,0.000185,2]
[326701533,1715263843732,-806.0,0.00018567,2]
[326701534,1715263843743,-153.742,0.00018596,2]
[326701535,1715263843761,-359.638,0.00018596,2]
[326701536,1715263843771,-151.674,0.00018596,2]
[326701537,1715263843780,-214.0,0.00018596,2]
[326701538,1715263843790,-1033.08175217,0.00019,2]
[326701539,1715263843801,-255.39051367,0.00019,5]
[326701540,1715263843810,-155.0,0.00019,2]
[326701541,1715263843820,-1000.0,0.00019,2]
[326701542,1715263843830,-10000.0,0.0001904,2]
[326701543,1715263843839,-500.0,0.00019178,2]
[326701544,1715263843849,-500.0,0.00019178,2]
[326701545,1715263843858,-470.14856922,0.00019178,2]
[326701546,1715263843868,-500.0,0.00019178,2]
[326701547,1715263843878,-576.89753776,0.00019178,2]
[326701548,1715263843887,-266.85660398,0.00019178,2]
[326701549,1715263843898,-178.88,0.00019178,2]
[326701550,1715263843907,-157.81,0.00019178,2]
[326701551,1715263843918,-172.57,0.00019178,2]
[326701552,1715263843928,-14521.74691456,0.00019398,2]
[326701553,1715263843945,-2206.39389146,0.00019897,2]
[326701554,1715263843959,-152.62670505,0.000199,2]
[326701555,1715263843969,-152.62670482,0.000199,2]
[326701556,1715263843981,-152.62670482,0.000199,2]
[326701557,1715263843991,-152.62670482,0.000199,2]
[326701558,1715263844002,-152.62670482,0.000199,2]
[326701559,1715263844012,-152.62670482,0.000199,2]
[326701560,1715263844023,-152.62670482,0.000199,2]
[326701561,1715263844033,-152.62670482,0.000199,2]
[326701562,1715263844048,-152.62670482,0.000199,2]
[326701563,1715263844060,-152.62670482,0.00019954,2]
[326701564,1715263844072,-1100.0,0.0002,3]
[326701565,1715263844087,-343.0,0.0002,2]
[326701566,1715263844097,-1283.90177793,0.00020186,2]
[326701567,1715263844107,-400.23264891,0.000204,2]
[326701568,1715263844119,-283.47139289,0.000204,2]
[326701569,1715263844130,-152.62670482,0.00020738,2]
[326701570,1715263844143,-413.5232386,0.00020898,2]
[326701571,1715263844152,-1000.0,0.00021,2]
[326701572,1715263844163,-153.76666663,0.00021102,2]
[326701573,1715263844174,-155.77546762,0.00021113,2]
[326701574,1715263844184,-158.2210767,0.00021153,2]
[326701575,1715263844194,-157.1622395,0.00021208,2]
[326701576,1715263844203,-152.62670482,0.00021522,2]
[326701577,1715263844213,-208.71260672,0.00021591,2]
[326701578,1715263844223,-487.0,0.000216,2]
[326701579,1715263844235,-20000.0,0.000219,3]
[326701580,1715263844245,-1250.0,0.000219,2]
[326701581,1715263844256,-2000.0,0.00021918,2]
[326701582,1715263844266,-168.86,0.00021918,2]
[326701583,1715263844276,-250.0,0.00021918,2]
[326701584,1715263844286,-663231.92992582,0.0002198,2]
[326701585,1715263844296,-152.995936,0.0002198,7]
[326701586,1715263844306,-166.766126,0.0002198,7]
[326701587,1715263844316,-152.664846,0.0002198,7]
[326701588,1715263844328,-174.592377,0.0002198,7]
[326701589,1715263844338,-151.0,0.0002198,7]
[326701590,1715263844348,-151.0,0.0002198,7]
[326701591,1715263844357,-151.0,0.0002198,7]
[326701592,1715263844367,-156.056325,0.0002198,7]
[326701593,1715263844376,-151.0,0.0002198,7]
[326701594,1715263844385,-151.0,0.0002198,7]
[326701595,1715263844395,-151.0,0.0002198,7]
[326701596,1715263844404,-248.144191,0.0002198,7]
[326701597,1715263844414,-151.0,0.0002198,7]
[326701598,1715263844425,-299.820304,0.0002198,7]
[326701599,1715263844434,-157.217215,0.0002198,7]
[326701600,1715263844443,-151.0,0.0002198,7]
[326701601,1715263844453,-151.0,0.0002198,7]
[326701602,1715263844463,-152.12,0.00022,2]
[326701603,1715263844472,-1150.0,0.00022,3]
[326701604,1715263844483,-154.13008894,0.00022218,2]
[326701605,1715263844492,-2206.39389146,0.00022229,2]
[326701606,1715263844502,-400.23264891,0.000223,2]
[326701607,1715263844513,-283.47139289,0.000223,2]
[326701608,1715263844525,-152.62670482,0.00022305,2]
[326701609,1715263844534,-1283.90177793,0.00022614,2]
[326701610,1715263844545,-152.44113517,0.000228,2]
[326701611,1715263844558,-1008.721214,0.00023,2]
[326701612,1715263844568,-3000.0,0.00023,2]
[326701613,1715263844579,-157.97353939,0.00023019,2]
[326701614,1715263844591,-152.62670482,0.00023089,2]
[326701615,1715263844603,-153.89614997,0.00023237,2]
[326701616,1715263844612,-208.71260672,0.00023613,2]
[326701617,1715263844623,-500.0,0.00023646,2]
[326701618,1715263844632,-500.0,0.00023646,2]
[326701619,1715263844642,-500.0,0.00023646,2]
[326701620,1715263844657,-500.0,0.00023646,2]
[326701621,1715263844668,-500.0,0.00023646,2]
[326701622,1715263844677,-500.0,0.00023646,2]
[326701623,1715263844687,-500.0,0.00023646,2]
[326701624,1715263844697,-500.0,0.00023646,2]
[326701625,1715263844707,-500.0,0.00023646,2]
[326701626,1715263844717,-500.0,0.00023646,2]
[326701627,1715263844726,-500.0,0.00023646,2]
[326701628,1715263844735,-500.0,0.00023646,2]
[326701629,1715263844746,-500.0,0.00023646,2]
[326701630,1715263844756,-500.0,0.00023646,2]
[326701631,1715263844765,-500.0,0.00023646,2]
[326701632,1715263844775,-500.0,0.00023646,2]
[326701633,1715263844784,-500.0,0.00023646,2]
[326701634,1715263844793,-500.0,0.00023646,2]
[326701635,1715263844802,-500.0,0.00023646,2]
[326701636,1715263844812,-500.0,0.00023646,2]
[326701637,1715263844821,-500.0,0.00023646,2]
[326701638,1715263844830,-500.0,0.00023646,2]
[326701639,1715263844839,-500.0,0.00023646,2]
[326701640,1715263844849,-500.0,0.00023646,2]
[326701641,1715263844858,-500.0,0.00023646,2]
[326701642,1715263844867,-500.0,0.00023646,2]
[326701643,1715263844877,-500.0,0.00023646,2]
[326701644,1715263844886,-500.0,0.00023646,2]
[326701645,1715263844896,-500.0,0.00023646,2]
[326701646,1715263844905,-500.0,0.00023646,2]
[326701647,1715263844915,-500.0,0.00023646,2]
[326701648,1715263844926,-500.0,0.00023646,2]
[326701649,1715263844937,-500.0,0.00023646,2]
[326701650,1715263844947,-500.0,0.00023646,2]
[326701651,1715263844957,-500.0,0.00023646,2]
[326701652,1715263844966,-500.0,0.00023646,2]
[326701653,1715263844976,-500.0,0.00023646,2]
[326701654,1715263844985,-500.0,0.00023646,2]
[326701655,1715263844995,-500.0,0.00023646,2]
[326701656,1715263845005,-500.0,0.00023646,2]
[326701657,1715263845016,-500.0,0.00023646,2]
[326701658,1715263845028,-500.0,0.00023646,2]
[326701659,1715263845038,-500.0,0.00023646,2]
[326701660,1715263845051,-500.0,0.00023646,2]
[326701661,1715263845061,-500.0,0.00023646,2]
[326701662,1715263845071,-500.0,0.00023646,2]
[326701663,1715263845080,-500.0,0.00023646,2]
[326701664,1715263845090,-500.0,0.00023646,2]
[326701665,1715263845100,-500.0,0.00023646,2]
[326701666,1715263845109,-500.0,0.00023646,2]
[326701667,1715263845121,-500.0,0.00023646,2]
[326701668,1715263845131,-500.0,0.00023646,2]
[326701669,1715263845141,-500.0,0.00023646,2]
[326701670,1715263845154,-500.0,0.00023646,2]
[326701671,1715263845165,-500.0,0.00023646,2]
[326701672,1715263845176,-500.0,0.00023646,2]
[326701673,1715263845185,-500.0,0.00023646,2]
[326701674,1715263845194,-500.0,0.00023646,2]
[326701675,1715263845204,-500.0,0.00023646,2]
[326701676,1715263845213,-500.0,0.00023646,2]
[326701677,1715263845223,-500.0,0.00023646,2]
[326701678,1715263845232,-500.0,0.00023646,2]
[326701679,1715263845241,-500.0,0.00023646,2]
[326701680,1715263845250,-500.0,0.00023646,2]
[326701681,1715263845260,-500.0,0.00023646,2]
[326701682,1715263845269,-500.0,0.00023646,2]
[326701683,1715263845278,-500.0,0.00023646,2]
[326701684,1715263845288,-500.0,0.00023646,2]
[326701685,1715263845297,-500.0,0.00023646,2]
[326701686,1715263845306,-500.0,0.00023646,2]
[326701687,1715263845316,-500.0,0.00023646,2]
[326701688,1715263845325,-500.0,0.00023646,2]
[326701689,1715263845334,-500.0,0.00023646,2]
[326701690,1715263845345,-500.0,0.00023646,2]
[326701691,1715263845357,-500.0,0.00023646,2]
[326701692,1715263845370,-500.0,0.00023646,2]
[326701693,1715263845380,-164.82674604,0.00023769,2]
[326701694,1715263845390,-152.12,0.000238,2]
[326701695,1715263845399,-157.97353939,0.00023834,2]
[326701696,1715263845409,-152.44113517,0.00023857,2]
[326701697,1715263845419,-152.62670482,0.00023873,2]
[326701698,1715263845430,-2950.0,0.00024,2]
[326701699,1715263845439,-1200.0,0.00024,3]
[326701700,1715263845449,-208.71260672,0.00024075,2]
[326701701,1715263845459,-208.71260672,0.00024141,2]
[326701702,1715263845470,-18021.59011206,0.0002418,2]
[326701703,1715263845483,-155.21230022,0.00024196,2]
[326701704,1715263845492,-400.23264891,0.000242,2]
[326701705,1715263845502,-283.47139289,0.000242,2]
[326701706,1715263845511,-1030.89198737,0.00024219,2]
[326701707,1715263845521,-420.08,0.00024247,2]
[326701708,1715263845531,-150.0,0.00024247,2]
[326701709,1715263845542,-150.0,0.00024247,2]
[326701710,1715263845732,-351.25,0.00024247,2]
[326701711,1715263845744,-523.22,0.00024247,2]
[326701712,1715263845754,-300.0,0.00024247,2]
[326701713,1715263845766,-521.42,0.00024247,2]
[326701714,1715263845775,-420.08,0.00024247,2]
[326701715,1715263845787,-331.41,0.00024247,2]
[326701716,1715263845797,-150.0,0.00024247,2]
[326701717,1715263845806,-840.16,0.00024247,2]
[326701718,1715263845817,-150.0,0.00024247,2]
[326701719,1715263845827,-420.08,0.00024247,2]
[326701720,1715263845837,-150.0,0.00024247,2]
[326701721,1715263845847,-418.27,0.00024247,2]
[326701722,1715263845859,-150.0,0.00024247,2]
[326701723,1715263845869,-152.44113517,0.00024465,2]
[326701724,1715263845882,-157.1622395,0.00024554,2]
[326701725,1715263845896,-2206.39389146,0.00024562,2]
[326701726,1715263845906,-152.62670482,0.00024657,2]
[326701727,1715263845925,-881.92,0.00024658,2]
[326701728,1715263845934,-2215.61166505,0.00024713,2]
[326701729,1715263845944,-293.7485134,0.00024713,2]
[326701730,1715263845954,-153.76666663,0.0002489,2]
[326701731,1715263845963,-413.5232386,0.00024897,2]
[326701732,1715263845974,-1119.163026,0.00024953,2]
[326701733,1715263845984,-4476.652101,0.00024953,2]
[326701734,1715263845993,-208.898661,0.00024953,2]
[326701735,1715263846003,-201.236333,0.00024953,2]
[326701736,1715263846013,-17708.68633321,0.00025,2]
[326701737,1715263846024,-248.12882201,0.00025,2]
[326701738,1715263846034,-326.01105802,0.00025,2]
[326701739,1715263846047,-1283.90177793,0.00025043,2]
[326701743,1715263846057,-152.12,0.000251,2]
[326701745,1715263846067,-208.71260672,0.00025187,2]
[326701747,1715263846076,-155.21230022,0.00025229,2]
[326701748,1715263846087,-1119.163026,0.00025265,2]
[326701749,1715263846096,-4476.652101,0.00025265,2]
[326701750,1715263846106,-208.71260672,0.00025311,2]
[326701751,1715263846115,-168.22068823,0.00025357,2]
[326701752,1715263846127,-172.57,0.00025379,2]
[326701753,1715263846138,-152.44113517,0.00025416,2]
[326701754,1715263846147,-158.32485787,0.00025438,2]
[326701755,1715263846157,-152.62670482,0.00025441,2]
[326701756,1715263846167,-152.44113517,0.00025498,2]
[326701757,1715263846176,-208.71260672,0.00025526,2]
[326701758,1715263846185,-154.07176275,0.00025572,2]
[326701759,1715263846203,-1119.163026,0.00025577,2]
[326701760,1715263846213,-4476.652101,0.00025577,2]
[326701761,1715263846222,-155.21230022,0.00025747,2]
[326701762,1715263846232,-1119.163026,0.00025889,2]
[326701763,1715263846242,-4476.652101,0.00025889,2]
[326701764,1715263846251,-153.76666663,0.00025894,2]
[326701765,1715263846260,-157.1622395,0.00025938,2]
[326701766,1715263846270,-1250.0,0.00026,3]
[326701767,1715263846282,-4055.0,0.00026027,2]
[326701768,1715263846292,-420.08,0.00026055,2]
[326701769,1715263846303,-150.0,0.00026055,2]